bitfinex/quotes_SOLUSD_20240818
["timestamp","ask_amount","ask_price","bid_price","bid_amount"]
[1724010620686,7.47377965,146.54,146.52,15.2554]
[1724010620994,11.70417346,146.58,146.52,15.2554]
[1724010621170,19.17891854,146.57,146.52,15.2554]
[1724010621371,19.17891854,146.56,146.52,15.2554]
[1724010621573,7.47474508,146.55,146.52,15.2554]
[1724010621782,11.70428393,146.58,146.54,8.77]
[1724010621983,19.17857058,146.57,146.54,8.77]
[1724010622295,19.17796507,146.56,146.54,8.77]
[1724010622484,7.4743576,146.55,146.54,8.77]
[1724010623986,11.70360747,146.57,146.54,8.77]
[1724010624185,45.0,146.61,146.52,6.4854]
[1724010624186,7.47385329,146.56,146.55,1.3645513]
[1724010624373,7.47385329,146.56,146.55,8.77]
[1724010625392,7.47374292,146.56,146.55,8.77]
[1724010628891,7.47373843,146.56,146.55,8.77]
[1724010632300,11.70264361,146.58,146.55,8.77]
[1724010632482,7.47368528,146.57,146.55,8.77]
[1724010632686,11.70255722,146.61,146.55,8.77]
[1724010633001,15.71,146.62,146.55,8.77]
[1724010633183,19.17622171,146.61,146.55,8.77]
[1724010633397,11.70254316,146.6,146.55,8.77]
[1724010633590,19.17622171,146.59,146.55,8.77]
[1724010633901,15.71,146.62,146.55,8.77]
[1724010634200,19.1764827,146.61,146.55,8.77]
[1724010634491,19.1764827,146.6,146.55,8.77]
[1724010634671,19.1764827,146.59,146.55,8.77]
[1724010634875,19.1764827,146.58,146.55,8.77]
[1724010635197,7.47378021,146.57,146.55,8.77]
[1724010635397,7.47378021,146.56,146.55,8.77]
[1724010636406,7.47373846,146.56,146.55,8.77]
[1724010637476,15.71,146.62,146.55,8.77]
[1724010637799,19.17637552,146.61,146.55,8.77]
[1724010638002,19.17634673,146.6,146.55,8.77]
[1724010638174,7.47372725,146.59,146.55,8.77]
[1724010638371,7.47372725,146.58,146.55,8.77]
[1724010638572,7.47303783,146.57,146.55,8.77]
[1724010638802,11.70199575,146.61,146.55,8.77]
[1724010639105,19.17530778,146.6,146.55,8.77]
[1724010639290,19.17535468,146.59,146.55,8.77]
[1724010639497,7.47334084,146.58,146.55,8.77]
[1724010639693,7.47334084,146.57,146.55,8.77]
[1724010640011,11.70201736,146.6,146.55,8.77]
[1724010640179,19.17535753,146.59,146.55,8.77]
[1724010640377,19.17535753,146.58,146.55,8.77]
[1724010640600,7.47334017,146.57,146.55,8.77]
[1724010640777,11.70201736,146.6,146.55,8.77]
[1724010640967,15.71,146.62,146.55,8.77]
[1724010640968,19.17536921,146.59,146.55,8.77]
[1724010641174,19.17536921,146.58,146.55,8.77]
[1724010641373,15.71,146.62,146.55,8.77]
[1724010641374,7.47335185,146.57,146.55,8.77]
[1724010641578,11.70201736,146.6,146.55,8.77]
[1724010641888,19.17536492,146.59,146.55,8.77]
[1724010642086,19.17536492,146.58,146.52,6.4854]
[1724010642299,7.47334756,146.57,146.54,8.77]
[1724010642618,11.70216014,146.61,146.54,8.77]
[1724010642914,19.17558225,146.6,146.54,8.77]
[1724010643112,19.17558225,146.59,146.54,8.77]
[1724010643289,19.17558225,146.58,146.54,8.77]
[1724010643494,7.47342211,146.57,146.54,8.77]
[1724010643699,7.4736297,146.56,146.54,8.77]
[1724010643992,11.70277118,146.61,146.54,8.77]
[1724010644187,19.17659317,146.6,146.54,8.77]
[1724010644418,19.17659317,146.59,146.55,1.36452744]
[1724010644717,19.17659317,146.58,146.55,1.36452744]
[1724010644886,7.47382199,146.57,146.54,8.77]
[1724010645214,7.47382199,146.56,146.55,1.36452425]
[1724010645416,7.47382199,146.56,146.54,8.77]
[1724010645711,11.70206207,146.6,146.54,8.77]
[1724010645951,19.17537067,146.59,146.54,8.77]
[1724010646104,19.17537067,146.58,146.54,8.77]
[1724010646413,7.4733086,146.57,146.54,8.77]
[1724010646600,7.4733086,146.56,146.54,8.77]
[1724010646801,15.71,146.62,146.54,8.77]
[1724010646802,11.70203662,146.61,146.54,8.77]
[1724010647018,19.17539423,146.6,146.54,8.77]
[1724010647217,15.71,146.62,146.54,8.77]
[1724010647429,19.17536262,146.61,146.54,8.77]
[1724010647637,19.17536262,146.6,146.54,8.77]
[1724010647919,19.17536262,146.59,146.54,8.77]
[1724010648214,15.71,146.62,146.54,8.77]
[1724010648215,19.17536262,146.58,146.54,8.77]
[1724010648420,19.17536262,146.57,146.54,8.77]
[1724010648602,7.47334393,146.56,146.54,8.77]
[1724010648908,11.70201414,146.61,146.54,8.77]
[1724010649116,19.17535582,146.6,146.54,8.77]
[1724010649323,19.17535582,146.59,146.54,8.77]
[1724010649520,19.17535582,146.58,146.54,8.77]
[1724010649729,15.71,146.62,146.54,8.77]
[1724010650041,19.17538514,146.57,146.54,8.77]
[1724010650237,7.4733527,146.56,146.54,8.77]
[1724010650404,11.7020299,146.61,146.54,8.77]
[1724010650603,19.17538322,146.6,146.54,8.77]
[1724010650826,19.17538322,146.59,146.54,8.77]
[1724010651003,19.17538322,146.58,146.54,8.77]
[1724010651203,19.17538322,146.57,146.54,8.77]
[1724010651431,7.47335332,146.56,146.54,8.77]
[1724010651644,11.70203275,146.61,146.54,8.77]
[1724010651810,19.17538607,146.6,146.54,8.77]
[1724010652139,19.17538607,146.59,146.53,20.0]
[1724010652308,19.17538607,146.58,146.55,8.77]
[1724010652631,19.17538607,146.57,146.55,8.77]
[1724010652823,7.47335332,146.56,146.55,8.77]
[1724010654043,15.71,146.62,146.55,8.77]
[1724010654339,19.17554705,146.61,146.55,8.77]
[1724010654529,19.17554705,146.6,146.55,8.77]
[1724010654727,19.17554705,146.59,146.55,8.77]
[1724010655027,19.17554705,146.58,146.55,8.77]
[1724010655231,19.17554705,146.57,146.55,8.77]
[1724010655538,7.47342424,146.56,146.55,8.77]
[1724010658236,7.4733688,146.56,146.55,8.77]
[1724010658608,7.4733688,146.56,146.55,28.77]
[1724010659518,11.70134291,146.61,146.55,28.77]
[1724010659722,19.17424404,146.6,146.57,8.77]
[1724010660039,19.17424404,146.59,146.57,8.77]
[1724010660229,19.17424404,146.58,146.57,8.77]
[1724010661143,15.71,146.62,146.57,8.77]
[1724010661340,19.17315752,146.61,146.57,8.77]
[1724010661544,11.70066702,146.6,146.57,8.77]
[1724010661742,19.1731602,146.59,146.57,8.77]
[1724010662042,7.47248607,146.58,146.57,8.77]
[1724010662223,15.71,146.62,146.57,8.77]
[1724010662414,19.17327033,146.61,146.57,8.77]
[1724010662740,7.12185351,146.63,146.55,20.0]
[1724010662741,19.17327033,146.6,146.59,8.77]
[1724010663037,7.47252897,146.6,146.59,8.77]
[1724010663236,23.01532077,146.66,146.59,8.77]
[1724010663425,11.69918506,146.61,146.59,8.77]
[1724010663621,19.17072107,146.6,146.59,8.77]
[1724010665235,29.83392077,146.66,146.59,8.77]
[1724010665425,64.17203814,146.65,146.59,8.77]
[1724010665615,19.17203814,146.64,146.59,8.77]
[1724010665924,19.17203814,146.63,146.59,8.77]
[1724010666125,19.17203814,146.62,146.59,8.77]
[1724010666434,19.17203814,146.61,146.59,8.77]
[1724010666640,7.47206035,146.6,146.59,8.77]
[1724010671313,7.47196546,146.6,146.59,8.77]
[1724010673149,7.47196546,146.6,146.57,8.77]
[1724010673333,7.47196546,146.59,146.57,8.77]
[1724010673524,11.69985815,146.6,146.55,20.0]
[1724010673726,15.88873808,146.64,146.56,20.0]
[1724010673926,64.17317378,146.63,146.56,20.0]
[1724010674138,19.17317378,146.62,146.56,20.0]
[1724010674347,19.17317378,146.61,146.56,20.0]
[1724010674526,19.17317378,146.6,146.56,20.0]
[1724010674725,7.47249136,146.59,146.56,20.0]
[1724010674942,11.70068242,146.61,146.56,20.0]
[1724010675148,19.17317806,146.6,146.56,20.0]
[1724010675336,7.47249564,146.59,146.56,20.0]
[1724010675658,11.70068242,146.61,146.56,20.0]
[1724010675980,19.17317806,146.6,146.56,20.0]
[1724010676246,7.47249564,146.59,146.56,20.0]
[1724010676450,11.70068242,146.61,146.56,20.0]
[1724010676624,19.17317357,146.6,146.56,20.0]
[1724010676824,7.47249115,146.59,146.56,20.0]
[1724010677146,11.70068242,146.61,146.56,20.0]
[1724010677353,19.17317357,146.6,146.56,20.0]
[1724010677523,7.47249115,146.59,146.56,20.0]
[1724010677724,11.70068242,146.61,146.56,20.0]
[1724010677951,19.17317357,146.6,146.56,20.0]
[1724010678153,7.47249115,146.59,146.56,20.0]
[1724010678445,11.70068242,146.61,146.56,20.0]
[1724010678749,19.17317357,146.6,146.56,20.0]
[1724010678949,7.47249115,146.59,146.56,20.0]
[1724010679143,11.70068242,146.61,146.56,20.0]
[1724010679327,19.17317806,146.6,146.56,20.0]
[1724010679529,7.47249564,146.59,146.56,20.0]
[1724010679753,11.70068242,146.61,146.56,20.0]
[1724010679957,19.17317806,146.6,146.57,8.77]
[1724010680147,7.47249564,146.59,146.57,8.77]
[1724010680338,45.0,146.63,146.57,8.77]
[1724010680339,11.70068242,146.61,146.57,8.77]
[1724010680554,19.17317497,146.6,146.57,8.77]
[1724010680756,7.47249255,146.59,146.56,20.0]
[1724010680945,11.70068242,146.61,146.58,8.77]
[1724010681147,7.47197913,146.6,146.53,21.36421252]
[1724010681366,6.1762,146.65,146.53,21.36421252]
[1724010681367,11.70068242,146.63,146.54,45.0]
[1724010681571,6.1762,146.65,146.54,45.0]
[1724010681572,6.1762,146.65,146.55,20.0]
[1724010681738,6.1762,146.65,146.56,45.0]
[1724010681739,19.17159673,146.64,146.56,45.0]
[1724010682077,6.1762,146.65,146.6,8.77]
[1724010682235,19.17155091,146.64,146.6,8.77]
[1724010682553,19.17155091,146.63,146.6,8.77]
[1724010682752,19.17155091,146.62,146.6,8.77]
[1724010683062,6.1762,146.65,146.6,8.77]
[1724010683063,7.47186608,146.61,146.6,8.77]
[1724010683756,19.17118438,146.61,146.6,8.77]
[1724010684348,7.47186608,146.61,146.6,8.77]
[1724010684957,19.17118438,146.61,146.6,8.77]
[1724010685141,7.47186608,146.61,146.6,8.77]
[1724010685858,19.17118438,146.61,146.6,8.77]
[1724010686062,7.47186608,146.61,146.6,8.77]
[1724010686742,7.47166959,146.61,146.6,8.77]
[1724010687873,7.47166959,146.61,146.58,8.77]
[1724010688052,6.1762,146.65,146.55,20.0]
[1724010688053,7.47166959,146.6,146.55,20.0]
[1724010688253,12.9952,146.65,146.57,8.77]
[1724010688254,11.69939442,146.62,146.57,8.77]
[1724010688452,12.9952,146.65,146.57,8.77]
[1724010688453,19.17149763,146.61,146.57,8.77]
[1724010688769,7.47210321,146.6,146.57,8.77]
[1724010688975,20.47006503,146.64,146.55,8.77]
[1724010689270,64.17216761,146.63,146.56,20.0]
[1724010689464,19.17216761,146.62,146.56,20.0]
[1724010689655,19.17216761,146.61,146.56,20.0]
[1724010689977,7.47210258,146.6,146.56,20.0]
[1724010690172,11.70007658,146.62,146.56,20.0]
[1724010690480,19.17212835,146.61,146.56,20.0]
[1724010690656,7.47205177,146.6,146.56,20.0]
[1724010690986,11.69999709,146.62,146.56,20.0]
[1724010691267,19.17209773,146.61,146.56,20.0]
[1724010691488,7.47210064,146.6,146.56,20.0]
[1724010691645,18.81878824,146.62,146.56,20.0]
[1724010691848,19.17204576,146.61,146.56,20.0]
[1724010692060,7.47205186,146.6,146.56,20.0]
[1724010692259,11.70000061,146.61,146.56,20.0]
[1724010692455,7.47210492,146.6,146.56,20.0]
[1724010692665,7.47210492,146.59,146.56,20.0]
[1724010692869,7.11879434,146.62,146.56,20.0]
[1724010693169,19.17217013,146.61,146.57,10.13447907]
[1724010693340,7.47210043,146.6,146.57,10.13447907]
[1724010693543,11.70002143,146.64,146.57,10.13447907]
[1724010693775,19.1720933,146.63,146.57,10.13447907]
[1724010694072,19.1720933,146.62,146.57,10.13447907]
[1724010694260,19.1720933,146.61,146.57,10.13447907]
[1724010694465,7.47207187,146.6,146.57,10.13447907]
[1724010694640,11.70001472,146.63,146.57,10.13447907]
[1724010694842,7.11871679,146.64,146.57,10.13447907]
[1724010695045,7.11871679,146.64,146.57,8.77]
[1724010696276,7.11871679,146.64,146.59,8.77]
[1724010696975,6.1762,146.65,146.59,8.77]
[1724010701679,6.1762,146.65,146.52,24.18679328]
[1724010701873,6.1762,146.65,146.58,8.77]
[1724010707086,23.01581827,146.66,146.58,8.77]
[1724010707397,23.01581827,146.66,146.59,1.36416204]
[1724010707398,45.0,146.65,146.59,1.36416204]
[1724010708894,23.01581827,146.66,146.59,1.36417961]
[1724010709095,23.01581827,146.66,146.56,22.8178]
[1724010709299,23.01581827,146.66,146.59,8.77]
[1724010713771,23.01581827,146.66,146.59,10.13416111]
[1724010714792,23.01581827,146.66,146.6,1.36410321]
[1724010715683,3.5749995,146.69,146.63,8.77]
[1724010715887,3.5749995,146.71,146.64,1.36365569]
[1724010716209,10.69257723,146.71,146.64,1.36365569]
[1724010716574,10.69257723,146.71,146.65,8.77]
[1724010716804,7.11757773,146.71,146.65,8.77]
[1724010717316,7.11757773,146.71,146.66,1.36361081]
[1724010717524,7.11757773,146.71,146.69,8.77]
[1724010717679,64.8645,146.77,146.69,8.77]
[1724010717879,64.8645,146.77,146.66,6.47]
[1724010718098,64.8645,146.77,146.69,8.77]
[1724010719300,6.8138,146.76,146.66,6.47]
[1724010719500,64.8645,146.77,146.67,28.77]
[1724010719501,80.448,146.77,146.67,28.77]
[1724010719675,87.56566251,146.77,146.67,28.77]
[1724010719887,80.75216251,146.77,146.67,28.77]
[1724010720278,80.75216251,146.77,146.69,8.77]
[1724010720707,45.0,146.76,146.69,8.77]
[1724010722311,80.75216251,146.77,146.7,1.36319154]
[1724010722477,71.98216251,146.77,146.7,1.36319154]
[1724010724490,71.98216251,146.77,146.71,1.36304491]
[1724010726380,71.98216251,146.77,146.71,10.13304491]
[1724010726581,71.98216251,146.77,146.71,16.67394491]
[1724010727309,71.98216251,146.77,146.71,15.3109]
[1724010728520,71.98216251,146.77,146.71,6.5409]
[1724010729111,71.98216251,146.77,146.71,7.90391465]
[1724010729880,71.98216251,146.77,146.71,15.3109]
[1724010730314,70.48216251,146.77,146.71,15.3109]
[1724010741488,70.48216251,146.77,146.72,1.36291157]
[1724010743714,70.48216251,146.77,146.73,1.3629105]
[1724010744712,70.48216251,146.77,146.73,8.77]
[1724010746409,70.48216251,146.77,146.71,6.5409]
[1724010746715,70.48216251,146.77,146.7,25.2841]
[1724010746898,70.48216251,146.77,146.71,20.0]
[1724010747819,70.48216251,146.77,146.7,16.5141]
[1724010749094,70.48216251,146.77,146.71,8.77]
[1724010751720,70.48216251,146.77,146.7,25.2841]
[1724010754404,70.48216251,146.77,146.7,16.5141]
[1724010754728,70.48216251,146.77,146.71,8.77]
[1724010760316,70.48216251,146.77,146.67,12.73693661]
[1724010760662,70.48216251,146.77,146.69,8.77]
[1724010760836,70.48216251,146.77,146.7,20.0]
[1724010761713,53.77,146.76,146.66,15.0859]
[1724010761913,6.8146,146.75,146.66,23.8559]
[1724010762126,45.0,146.74,146.66,23.8559]
[1724010762438,16.5537,146.73,146.64,8.77]
[1724010762822,6.8157,146.72,146.63,12.69363661]
[1724010763033,23.369,146.73,146.64,8.77]
[1724010763814,16.5537,146.73,146.64,8.77]
[1724010764140,32.1393,146.73,146.63,12.69363661]
[1724010764342,45.0,146.72,146.64,28.77]
[1724010766240,16.5537,146.73,146.66,8.77]
[1724010767031,16.5537,146.73,146.68,8.77]
[1724010769045,7.11477272,146.74,146.68,8.77]
[1724010769554,6.8139,146.76,146.68,8.77]
[1724010775623,15.5839,146.76,146.68,8.77]
[1724010777255,15.5839,146.76,146.68,8.7]
[1724010780246,93.84541233,146.77,146.68,8.7]
[1724010780552,93.84541233,146.77,146.7,8.77]
[1724010780741,87.03191233,146.77,146.7,8.77]
[1724010782833,87.03191233,146.77,146.71,1.36304587]
[1724010785147,87.03191233,146.77,146.7,8.77]
[1724010786332,87.03191233,146.77,146.72,8.77]
[1724010788949,79.9182,146.77,146.68,6.0816]
[1724010789145,79.9182,146.77,146.69,28.77]
[1724010790734,53.77,146.76,146.69,20.0]
[1724010790939,60.5838,146.76,146.68,20.0]
[1724010791550,60.5838,146.76,146.67,8.77]
[1724010791950,60.5838,146.76,146.64,21.962]
[1724010791951,6.8143,146.75,146.64,21.962]
[1724010792163,6.8143,146.75,146.66,8.77]
[1724010792878,6.8143,146.75,146.67,20.0]
[1724010796867,67.70381382,146.76,146.67,20.0]
[1724010797262,67.70381382,146.76,146.68,8.77]
[1724010797642,15.88991382,146.76,146.69,1.3633134]
[1724010797848,7.11991382,146.76,146.69,1.3633134]
[1724010798467,7.11991382,146.76,146.68,8.77]
[1724010800544,22.70371382,146.76,146.68,8.77]
[1724010800745,45.0,146.75,146.67,20.0]
[1724010801355,15.6741,146.73,146.67,20.0]
[1724010809786,15.6741,146.73,146.65,28.77]
[1724010811172,22.4893,146.73,146.65,28.77]
[1724010811378,22.4893,146.73,146.65,8.77]
[1724010811987,60.5857,146.72,146.63,8.77]
[1724010812574,8.77,146.68,146.59,15.15933661]
[1724010813793,15.5875,146.68,146.59,15.15933661]
[1724010814104,6.8195,146.64,146.54,7.81887579]
[1724010814281,21.9617,146.67,146.45,26.4861]
[1724010814282,8.77,146.62,146.45,26.4861]
[1724010814507,15.6741,146.61,146.52,8.77]
[1724010814682,15.0576,146.6,146.52,8.77]
[1724010815070,21.8789,146.6,146.52,8.77]
[1724010815792,30.0,146.58,146.52,8.77]
[1724010816093,30.0,146.58,146.46,8.06746774]
[1724010816302,30.0,146.58,146.51,8.77]
[1724010816468,30.0,146.58,146.52,20.0]
[1724010823705,30.0,146.58,146.53,10.13467653]
[1724010824473,30.0,146.58,146.55,8.77]
[1724010825799,30.0,146.58,146.57,8.77]
[1724010826124,15.6741,146.61,146.57,10.13437945]
[1724010826274,15.6741,146.61,146.57,30.13437945]
[1724010826602,15.6741,146.61,146.57,10.13437945]
[1724010827185,15.6741,146.61,146.57,8.77]
[1724010837991,22.0538,146.64,146.57,8.77]
[1724010843302,22.0538,146.64,146.56,28.77]
[1724010845118,28.8733,146.64,146.56,28.77]
[1724010851501,22.0538,146.64,146.56,28.77]
[1724010852209,22.0538,146.64,146.57,1.36425519]
[1724010852404,22.0538,146.64,146.56,28.77]
[1724010854752,30.8238,146.64,146.56,20.0]
[1724010854907,8.77,146.62,146.53,8.77]
[1724010855103,8.77,146.62,146.54,20.0]
[1724010860212,45.0,146.61,146.55,8.77]
[1724010860411,6.8204,146.62,146.55,8.77]
[1724010861524,13.95093257,146.63,146.55,8.77]
[1724010861708,45.0,146.62,146.55,8.77]
[1724010864234,7.13093257,146.63,146.55,8.77]
[1724010864447,7.13093257,146.63,146.57,8.77]
[1724010864741,22.0538,146.64,146.57,8.77]
[1724010865030,29.1771812,146.64,146.57,8.77]
[1724010869012,35.9966812,146.64,146.57,8.77]
[1724010869927,29.1771812,146.64,146.57,8.77]
[1724010870142,7.1233812,146.64,146.58,1.36423536]
[1724010871441,7.1233812,146.64,146.57,8.77]
[1724010872025,7.1233812,146.64,146.61,8.77]
[1724010872224,7.1233812,146.64,146.63,8.77]
[1724010872424,6.8167,146.7,146.63,8.77]
[1724010872620,13.93763689,146.7,146.63,8.77]
[1724010873133,22.70763689,146.7,146.61,8.77]
[1724010873535,22.70763689,146.7,146.57,6.5077]
[1724010873536,6.8172,146.69,146.57,6.5077]
[1724010873716,45.0,146.68,146.61,8.77]
[1724010886527,13.93763689,146.7,146.61,8.77]
[1724010886832,7.12093689,146.7,146.65,8.77]
[1724010887039,6.5299,146.71,146.65,8.77]
[1724010888426,6.5299,146.71,146.63,8.77]
[1724010888621,6.5299,146.71,146.64,20.0]
[1724010889465,8.77,146.67,146.55,21.25341663]
[1724010889752,15.8173,146.64,146.56,15.4227]
[1724010891740,15.8173,146.64,146.57,20.0]
[1724010896358,15.8173,146.64,146.55,8.77]
[1724010896527,15.8173,146.64,146.56,20.0]
[1724010897553,22.94007708,146.64,146.56,20.0]
[1724010901634,15.8173,146.64,146.56,20.0]
[1724010905584,15.8173,146.64,146.61,8.77]
[1724010905743,6.5367,146.65,146.61,8.77]
[1724010905948,6.5367,146.65,146.62,1.3639369]
[1724010906146,16.4963,146.68,146.63,8.77]
[1724010906375,16.4963,146.68,146.59,1.36381834]
[1724010906376,16.4963,146.68,146.65,8.77]
[1724010906577,6.1109,146.7,146.65,8.77]
[1724010906744,6.1109,146.7,146.66,20.0]
[1724010906937,6.1109,146.7,146.67,8.77]
[1724010907143,22.6072,146.73,146.67,8.77]
[1724010918077,16.4963,146.73,146.67,8.77]
[1724010918279,7.11884507,146.75,146.71,8.77]
[1724010918582,22.115,146.77,146.72,1.36296038]
[1724010918781,22.115,146.77,146.72,21.36296038]
[1724010919487,15.5113,146.77,146.72,20.0]
[1724010919664,15.5113,146.77,146.69,8.77]
[1724010919875,15.5113,146.77,146.7,20.0]
[1724010920381,6.6037,146.75,146.66,23.9693]
[1724010921185,8.77,146.74,146.64,8.77]
[1724010921350,8.77,146.72,146.64,8.77]
[1724010921753,15.5113,146.73,146.64,8.77]
[1724010922685,15.5113,146.73,146.65,20.0]
[1724010923459,22.3268,146.73,146.65,20.0]
[1724010923666,22.3268,146.73,146.64,8.77]
[1724010923872,22.3268,146.73,146.65,20.0]
[1724010925581,15.5113,146.73,146.65,20.0]
[1724010926563,15.5113,146.73,146.66,10.13345957]
[1724010926771,15.5113,146.73,146.66,8.77]
[1724010928166,15.5113,146.73,146.65,20.0]
[1724010928366,15.5113,146.73,146.65,28.77]
[1724010928669,15.5113,146.73,146.66,20.0]
[1724010931558,15.5113,146.73,146.67,8.77]
[1724010931771,15.5113,146.73,146.68,1.36330362]
[1724010932990,15.5113,146.73,146.67,8.77]
[1724010936480,15.5113,146.73,146.68,21.36316992]
[1724010937391,15.5113,146.73,146.69,8.77]
[1724010937592,15.5113,146.73,146.7,1.36314242]
[1724010937892,15.5113,146.73,146.7,1.36314009]
[1724010938186,15.5113,146.73,146.69,8.77]
[1724010938187,15.5113,146.73,146.69,10.1331495]
[1724010939197,15.5113,146.73,146.69,8.77]
[1724010944368,15.5113,146.73,146.67,8.77]
[1724010944563,15.5113,146.73,146.62,21.3017]
[1724010944564,31.0968,146.73,146.62,15.1993]
[1724010944783,31.0968,146.73,146.59,15.7069]
[1724010944784,15.2065,146.68,146.59,15.7069]
[1724010944972,15.2065,146.68,146.61,8.77]
[1724010946092,15.2065,146.68,146.59,8.77]
[1724010946479,15.2065,146.68,146.6,20.0]
[1724010949084,15.2065,146.68,146.61,8.77]
[1724010951218,60.2956,146.67,146.6,20.0]
[1724010951371,60.2956,146.67,146.51,50.7869]
[1724010951372,15.2065,146.64,146.51,50.7869]
[1724010951570,15.2065,146.64,146.56,8.77]
[1724010953076,15.2065,146.64,146.57,20.0]
[1724010953278,6.5256,146.62,146.57,20.0]
[1724010953509,6.5256,146.62,146.55,8.77]
[1724010954702,6.5256,146.62,146.56,20.0]
[1724010954997,6.5256,146.62,146.57,10.13444624]
[1724010955201,6.5256,146.62,146.58,1.36423038]
[1724010958484,6.5256,146.62,146.58,1.36424232]
[1724010958705,6.5256,146.62,146.59,8.77]
[1724010960211,15.2065,146.64,146.6,1.36406695]
[1724010960718,15.2065,146.64,146.59,8.77]
[1724010963392,15.2065,146.64,146.61,8.77]
[1724010963590,15.2065,146.64,146.62,1.36393824]
[1724010963897,15.2065,146.64,146.61,8.77]
[1724010964302,15.2065,146.64,146.62,1.36388512]
[1724010964508,15.2065,146.64,146.62,1.36388435]
[1724010964714,15.2065,146.64,146.61,8.77]
[1724010965019,15.2065,146.64,146.56,20.0]
[1724010965203,15.2065,146.64,146.49,278.2]
[1724010965204,15.2065,146.64,146.57,28.77]
[1724010965524,15.2065,146.64,146.57,8.77]
[1724010965693,15.2065,146.64,146.58,20.0]
[1724010966395,15.2065,146.64,146.59,10.13419109]
[1724010967099,15.2065,146.64,146.59,8.77]
[1724010970397,15.2065,146.64,146.58,20.0]
[1724010970599,15.2065,146.64,146.59,8.77]
[1724010972107,15.2065,146.64,146.6,1.36402627]
[1724010972614,15.2065,146.64,146.59,8.77]
[1724010973503,15.2065,146.64,146.57,8.77]
[1724010973711,15.2065,146.64,146.58,20.0]
[1724010976595,15.2065,146.64,146.59,8.77]
[1724010982341,15.2065,146.64,146.61,8.77]
[1724010984248,15.2065,146.64,146.62,1.36403315]
[1724010984814,15.2065,146.64,146.61,8.77]
[1724010993126,6.3496,146.65,146.62,1.363901]
[1724010993542,6.3496,146.65,146.61,8.77]
[1724011007661,6.3496,146.65,146.58,28.77]
[1724011010565,6.3496,146.65,146.6,8.77]
[1724011011570,6.3496,146.65,146.62,8.77]
[1724011011867,6.3496,146.65,146.58,55.08]
[1724011011868,16.3304,146.67,146.64,8.77]
[1724011018269,16.3304,146.67,146.62,8.77]
[1724011018580,16.3304,146.67,146.63,20.0]
[1724011023290,16.3304,146.67,146.63,21.36387115]
[1724011023795,16.3304,146.67,146.63,1.36387115]
[1724011023989,16.3304,146.67,146.62,8.77]
[1724011028081,6.0765,146.66,146.53,15.0569]
[1724011028280,6.0765,146.66,146.57,8.77]
[1724011028817,12.8951,146.66,146.53,15.0569]
[1724011028971,12.8951,146.66,146.57,8.77]
[1724011029986,12.8951,146.66,146.58,20.0]
[1724011037590,6.0765,146.66,146.58,20.0]
[1724011039185,6.0765,146.66,146.59,8.77]
[1724011039390,6.0765,146.66,146.59,10.13412674]
[1724011039649,6.0765,146.66,146.61,8.77]
[1724011041599,6.0765,146.66,146.6,28.77]
[1724011041784,6.0765,146.66,146.53,15.0569]
[1724011041985,6.0765,146.66,146.57,8.77]
[1724011042184,6.0765,146.66,146.58,20.0]
[1724011048487,6.0765,146.66,146.59,8.77]
[1724011051615,6.0765,146.66,146.61,8.77]